Workbook

Sheet Curvas rate, Yield, GE

Sheet Tabla
C2: SEGUIMIENTO PRODUCCION
B4: SEMANA | C4: Turno | D4: Fecha | E4: Principal producto | F4: Tiempo de opera-ción (h) | G4: Produ-cción 1 (Cajas) | H4: Peso por caja 1 (Kg) | I4: Produ-cción 2 (Cajas) | J4: Peso por caja 2 (Kg) | K4: Produ-cción (Kg) | L4: Rate (Tn / h) | N4: Rate (Tn / turno) | O4: RPM | P4: Rate objetivo (Tn / turno) | Q4: GE | R4: MERMA BUFFER (Tn) | S4: MERMA TOTAL (Tn) | T4: YIELD | U4: Tiempo de paro de línea (min) | V4: Tiempo promedio en que llega el corte (min) | W4: Nros de cortes | X4: Nros de cambios de fusibles | Y4: ETE BOSCH 1 | Z4: ETE BOSCH 2 | AA4: ETE BOSCH 3 | AB4: ETE BOSCH 4
B5: 13 | C5: 17/03 T1 | D5: 2014-03-17 | F5: 6 | G5: 700 | H5: 5.184 | K5: =(G5*H5+I5*J5) -> 3628.8 | L5: =K5/(F5*1000) -> 0.6048 | N5: =L5*8 -> 4.8384 | O5: 14 | P5: 10 | Q5: 0.2058823529 | R5: 1900 | S5: 2721 | T5: 0.5591542161 | U5: 3.38 | W5: 10
C6: 17/03 T2 | D6: 2014-03-17 | F6: 8 | G6: 1200 | H6: 5.184 | K6: 6220.8 | L6: =K6/(F6*1000) -> 0.7776 | N6: =L6*8 -> 6.2208 | O6: 14 | P6: 10 | Q6: 0.3529411765 | R6: 3000 | S6: 4315 | T6: 0.57132136 | U6: 0.75 | W6: 7
C7: 17/03 T3 | D7: 2014-03-17 | F7: =6+20/60 -> 6.333333333 | G7: 1200 | H7: 5.184 | K7: 6220.8 | L7: 0.9822315789 | N7: 7.857852632 | O7: 14 | P7: 10 | Q7: 0.4458204334 | R7: 1620 | S7: 2586 | T7: 0.687581407 | U7: 2.45 | W7: 8
C8: 18/03 T1 | D8: 2014-03-18 | F8: =7+35/60 -> 7.583333333 | G8: 1000 | H8: 5.184 | K8: 5184 | L8: 0.6836043956 | N8: 5.468835165 | O8: 14 | P8: 12 | Q8: 0.2777777778 | R8: 1800 | S8: 2500 | T8: 0.6585 | U8: 2.75 | W8: 11
C9: 18/03 T2 | D9: 2014-03-18 | F9: 8 | G9: 2090 | H9: 5.184 | K9: 10834.56 | L9: 1.35432 | N9: 10.83456 | O9: 14 | P9: 12 | Q9: 0.5805555556 | R9: 750 | S9: 2555 | T9: 0.7927 | U9: 0.87 | W9: 17
C10: 18/03 T3 | D10: 2014-03-18 | F10: 8 | G10: 2040 | H10: 5.184 | K10: 10575.36 | L10: 1.32192 | N10: 10.57536 | O10: 15 | P10: 12 | Q10: 0.5666666667 | R10: 450 | S10: 1890 | T10: 0.8283 | U10: 1 | W10: 8
C11: 19/03 T1 | D11: 2014-03-19 | F11: 8 | G11: 2238 | H11: 5.184 | K11: 11601.792 | L11: =K11/(F11*1000) -> 1.450224 | N11: =L11*8 -> 11.601792 | O11: 15 | P11: 13 | Q11: 0.6217 | R11: 625 | S11: 1250 | T11: 0.886 | U11: 1.33 | W11: 11
C12: 19/03 T2 | D12: 2014-03-19 | F12: 8 | G12: 2300 | H12: 5.184 | K12: 11923.2 | L12: =K12/(F12*1000) -> 1.4904 | N12: =L12*8 -> 11.9232 | O12: 16 | P12: 13 | Q12: 0.6389 | R12: 480 | S12: 1500 | T12: 0.8884 | U12: 1.083333333 | W12: 11
C13: 19/03 T3 | D13: 2014-03-19 | F13: 8 | G13: 2500 | H13: 5.184 | K13: 12960 | L13: 1.62 | N13: 12.96 | O13: 16 | P13: 13 | Q13: 0.6944 | S13: 700 | T13: 0.9282 | U13: 0.75 | W13: 9
C14: 20/03 T1 | D14: 2014-03-20 | F14: 4.67 | G14: 1100 | H14: 5.184 | K14: 5702.4 | L14: 1.221070664 | N14: 9.76856531 | O14: 16 | P14: 14 | Q14: 0.3056 | R14: 485 | S14: 950 | T14: 0.8385 | U14: 4.68 | W14: 8
C15: 20/03 T2 | D15: 2014-03-20 | F15: 8 | G15: 1500 | H15: 5.184 | K15: 7776 | L15: =K15/(F15*1000) -> 0.972 | N15: =L15*8 -> 7.776 | O15: 16 | P15: 14 | Q15: 0.4167 | R15: 340 | S15: 1270 | T15: 0.8429 | U15: 0.78 | W15: 9
C16: 20/03 T3 | D16: 2014-03-20 | F16: 8 | G16: 2700 | H16: 5.184 | K16: 13996.8 | L16: 1.7496 | N16: 13.9968 | O16: 16 | P16: 14 | Q16: 0.75 | R16: 300 | S16: 600 | T16: 0.9403 | U16: 0.58 | W16: 7
C17: 21/03 T1 | D17: 2014-03-21 | F17: 8 | G17: 1800 | H17: 5.184 | K17: 9331.2 | L17: 1.1664 | N17: 9.3312 | O17: 17 | P17: 14 | Q17: 0.5 | R17: 0 | S17: 600 | T17: 0.9229 | U17: 3 | W17: 5 | X17: 0
C18: 21/03 T2 | D18: 2014-03-21 | F18: 8 | G18: 2700 | H18: 5.184 | K18: 13996.8 | L18: =K18/(F18*1000) -> 1.7496 | N18: =L18*8 -> 13.9968 | O18: 17 | P18: 14 | Q18: 0.75 | R18: 650 | S18: 1600 | T18: 0.8771 | U18: 0.8333333333 | W18: 10 | X18: 3
C19: 21/03 T3 | D19: 2014-03-21 | F19: 8 | G19: 2600 | H19: 5.184 | K19: 13478.4 | L19: 1.6848 | N19: 13.4784 | O19: 17 | P19: 14 | Q19: 0.72 | S19: 870 | T19: 0.927 | U19: 1.083333333 | V19: =(17+16+17+21+17+18+17+17+18+17)/10 -> 17.5 | W19: 10 | X19: 4
C20: 22/03 T1 | D20: 2014-03-22 | F20: 8 | G20: 2000 | H20: 5.184 | K20: 10368 | L20: 1.296 | N20: 10.368 | O20: 17 | P20: 14 | Q20: 0.5555555556 | R20: 450 | S20: 2105 | T20: 0.8144903072 | U20: 1.82 | V20: 17 | W20: 7 | X20: 1 | Y20: 1 | Z20: 0.89 | AA20: 0.96 | AB20: 0.92
C21: 22/03 T2 | D21: 2014-03-22 | G21: 2700 | H21: 5.184 | K21: 13996.8
C22: 22/03 T3 | D22: 2014-03-22 | G22: 1829 | H22: 5.184 | K22: 9481.536
C23: 23/03 T1 | D23: 2014-03-23 | K23: 0
C24: 23/03 T2 | D24: 2014-03-23 | K24: 0
C25: 23/03 T3 | D25: 2014-03-23 | K25: 0
B26: 14 | C26: 24/03 T1 | D26: 2014-03-24 | F26: 4 | G26: 720 | H26: 6.048 | K26: =(G26*H26+I26*J26) -> 4354.56 | L26: =K26/(F26*1000) -> 1.08864 | N26: =L26*8 -> 8.70912 | O26: 16 | P26: 14 | Q26: 0.2470588235 | R26: 650 | S26: 1170 | T26: 0.7696333206 | U26: 0.53 | V26: 17 | W26: 4
C27: 24/03 T2 | D27: 2014-03-24 | F27: 8 | G27: 1022 | H27: 6.048 | I27: 100 | J27: 5.184 | K27: 6699.456 | L27: =K27/(F27*1000) -> 0.837432 | N27: =L27*8 -> 6.699456 | O27: 16 | P27: 14 | Q27: 0.3861 | R27: 750 | S27: 1697 | T27: 0.813 | U27: 3.35 | V27: 17 | W27: 5 | Y27: 0.82 | Z27: 0.87 | AA27: 0.91 | AB27: 0.94 | AC27: =(Y27+Z27+AA27+AB27)/4 -> 0.885
C28: 24/03 T3 | D28: 2014-03-24 | F28: 8 | G28: 2380 | H28: 5.184 | K28: 12337.92 | L28: 1.54224 | N28: 12.33792 | O28: 16 | P28: 14 | Q28: 0.7352941176 | R28: 700 | S28: 1450 | T28: 0.8857731772 | U28: 0.78 | V28: 17 | W28: 9 | X28: 2 | Y28: 0.9 | Z28: 0.86 | AA28: 0.97 | AB28: 0.95 | AC28: =(Y28+Z28+AA28+AB28)/4 -> 0.92
C29: 25/03 T1 | D29: 2014-03-25 | F29: 8 | G29: 1800 | H29: 5.184 | K29: 9331.2 | L29: =K29/(F29*1000) -> 1.1664 | N29: =L29*8 -> 9.3312 | O29: 16 | P29: 14 | Q29: 0.53 | R29: 2250 | S29: 3350 | T29: 0.7226 | U29: 1.08 | V29: 17 | Y29: 0.92 | Z29: 0.87 | AA29: 0.91 | AB29: 0.92 | AC29: =(Y29+Z29+AA29+AB29)/4 -> 0.905
C30: 25/03 T2 | D30: 2014-03-25 | F30: 8 | G30: 2200 | H30: 5.184 | K30: 11404.8 | L30: 1.4256 | N30: 11.4048 | O30: 16 | P30: 14 | Q30: 0.6470588235 | R30: 500 | S30: 1892 | T30: 0.839 | U30: 1.13 | V30: 17 | Y30: 0.91 | Z30: 0.86 | AA30: 0.95 | AB30: 0.93 | AC30: 0.9125
C31: 25/03 T3 | D31: 2014-03-25 | F31: 8 | G31: 1900 | H31: 5.184 | K31: 9849.6 | L31: 1.2312 | N31: 9.8496 | O31: 16 | P31: 14 | Q31: 0.5588235294 | R31: 100 | S31: 863 | T31: 0.9022438314 | U31: 2.38 | V31: 16 | W31: 4 | Y31: 0.84 | Z31: 0.88 | AA31: 0.93 | AB31: 0.96 | AC31: 0.9025
C32: 26/03 T1 | D32: 2014-03-26 | F32: 8 | G32: 2400 | H32: 5.184 | K32: 12441.6 | L32: 1.5552 | N32: 12.4416 | O32: 17 | P32: 14 | Q32: 0.7058823529 | R32: 200 | S32: 1670 | T32: 0.8687331054 | U32: 0.9666666667 | V32: 17 | W32: 9 | Y32: 0.84 | Z32: 0.88 | AA32: 0.9 | AB32: 0 | AC32: 0.655
C33: 26/03 T2 | D33: 2014-03-26 | F33: 1.3 | G33: 494 | H33: 5.184 | K33: 2560.896 | L33: =K33/(F33*1000) -> 1.96992 | N33: =L33*8 -> 15.75936 | O33: 17 | P33: 14 | Q33: 0.1452941176 | S33: 760 | T33: 0.7574798963 | U33: 0.17 | V33: 17 | W33: 2 | Y33: 0.84 | Z33: 0.84 | AA33: 0 | AB33: 0 | AC33: 0.42
C34: 26/03 T3 | D34: 2014-03-26 | F34: 6 | G34: 1512 | H34: 6.048 | K34: 9144.576 | L34: 1.524096 | N34: 12.192768 | O34: 17 | P34: 14 | Q34: 0.490162037 | R34: 100 | S34: 740 | T34: 0.9090353553 | U34: 0.67 | V34: 16 | W34: 6 | X34: 3 | Y34: 0.94 | Z34: 0.94 | AA34: 0.93 | AB34: 0.96 | AC34: 0.9425
C35: 27/03 T1 | D35: 2014-03-27 | F35: 8 | G35: 576 | H35: 6.048 | K35: 3483.648 | L35: =K35/(F35*1000) -> 0.435456 | N35: =L35*8 -> 3.483648 | O35: 14 | P35: 14 | Q35: 0.1867 | R35: 1060 | S35: 1840 | T35: 0.6419 | U35: 0.82 | V35: 16 | W35: 5 | Y35: 0 | Z35: 0 | AA35: 0 | AB35: 0 | AC35: 0
C36: 27/03 T2 | D36: 2014-03-27 | F36: 8 | G36: 1800 | H36: 6.048 | K36: 10886.4 | L36: 1.3608 | N36: 10.8864 | O36: 16 | P36: 14 | Q36: 0.5835262346 | R36: 500 | S36: 1170 | T36: 0.9018791868 | U36: 1.32 | V36: 16 | W36: 10 | Y36: 0 | Z36: 0 | AA36: 0 | AB36: 0 | AC36: 0
C37: 27/03 T3 | D37: 2014-03-27 | F37: 8 | G37: 911 | H37: 6.048 | I37: 1000 | J37: 5.184 | K37: 10693.728 | L37: 1.336716 | N37: 10.693728 | O37: 16 | P37: 14 | Q37: 0.5731068887 | R37: 500 | S37: 1373 | T37: 0.8722240711 | U37: 1.42 | V37: 15 | W37: 10 | Y37: 0.86 | Z37: 0.82 | AA37: 0.89 | AB37: 0.94 | AC37: 0.8775
C38: 28/03 T1 | D38: 2014-03-28 | F38: 8 | G38: 1800 | H38: 5.184 | K38: =(G38*H38+I38*J38) -> 9331.2 | L38: =K38/(F38*1000) -> 1.1664 | N38: =L38*8 -> 9.3312 | O38: 16 | P38: 14 | Q38: 0.5 | R38: 250 | S38: 3245 | T38: 0.699689509 | U38: 1.28 | V38: 11 | W38: 5 | Y38: 0 | Z38: 0 | AA38: 0 | AB38: 0 | AC38: 0
C39: 28/03 T2 | D39: 2014-03-28 | F39: 8 | G39: 2000 | H39: 5.184 | K39: 10368 | L39: 1.296 | N39: 10.368 | O39: 16 | P39: 14 | Q39: 0.5555555556 | S39: 1950 | T39: 0.8267942584 | U39: 1.233333333 | V39: 17 | W39: 11 | Y39: 0 | Z39: 0 | AA39: 0 | AB39: 0 | AC39: 0
C40: 28/03 T3 | D40: 2014-03-28 | F40: 8 | G40: 2700 | H40: 5.184 | K40: 13996.8 | L40: 1.7496 | N40: 13.9968 | O40: 16 | P40: 14 | Q40: 0.75 | R40: 0 | S40: 700 | T40: 0.937567424 | U40: 0.42 | V40: 8 | W40: 5 | Y40: 0.94 | Z40: 0.82 | AA40: 0.88 | AB40: 0.91 | AC40: 0.8875
C41: 29/03 T1 | D41: 2014-03-29 | F41: 8 | G41: 2400 | H41: 5.184 | K41: 12441.6 | L41: 1.5552 | N41: 12.4416 | O41: 17 | P41: 14 | Q41: 0.6666666667 | R41: 135 | S41: 2360 | T41: 0.8256656648 | U41: 0.75 | V41: 10 | W41: 8 | Y41: 0 | Z41: 0 | AA41: 0 | AB41: 0
C42: 29/03 T2 | D42: 2014-03-29 | F42: 4 | G42: 633 | H42: 5.184 | K42: 3281.472 | L42: 0.820368 | N42: 6.562944 | O42: 17 | P42: 14 | Q42: 0.1758333333 | R42: 250 | S42: 580 | T42: 0.8346019422 | U42: 1.1 | W42: 4 | Y42: 0 | Z42: 0 | AA42: 0 | AB42: 0
C43: 29/03 T3 | D43: 2014-03-29 | F43: 8 | G43: 2400 | H43: 5.184 | K43: 12441.6 | L43: =K43/(F43*1000) -> 1.5552 | N43: =L43*8 -> 12.4416 | O43: 17 | P43: 14 | Q43: 0.6666666667 | R43: 0 | S43: 800 | T43: 0.9231126407 | U43: 1.08 | V43: 10 | W43: 8 | Y43: 0.94 | Z43: 0.89 | AA43: 0.93 | AB43: 0.92
C44: 30/03 T1 | D44: 2014-03-30 | F44: 8 | G44: 2389 | H44: 5.184 | K44: 12384.576 | L44: 1.548072 | N44: 12.384576 | O44: 17 | P44: 14 | Q44: 0.7675502008 | S44: 1250 | T44: 0.8910407237 | U44: 0.98 | W44: 9
C45: 30/03 T2 | D45: 2014-03-30 | K45: 0
C46: 30/03 T3 | D46: 2014-03-30 | F46: 8 | G46: 1510 | H46: 5.184 | K46: 7827.84 | L46: =K46/(F46*1000) -> 0.97848 | N46: =L46*8 -> 7.82784 | O46: 16 | P46: 14 | Q46: 0.4194444444 | R46: 0 | S46: 550 | T46: 0.9171445457 | U46: 2.25 | W46: 6
B47: 15 | C47: 31/03 T1 | D47: 2014-03-31 | G47: 2049 | H47: 6.048 | K47: 12392.352
C48: 31/03 T2 | D48: 2014-03-31 | G48: 2214 | H48: 6.048 | K48: 13390.272 | AC48: =(Y48+Z48+AA48+AB48)/4 -> 0
C49: 31/03 T3 | D49: 2014-03-31 | G49: 2016 | H49: 6.048 | K49: 12192.768 | AC49: =(Y49+Z49+AA49+AB49)/4 -> 0
C50: 01/04 T1 | D50: =D49+1 -> 2014-04-01 | G50: 576 | H50: 6.048 | K50: 3483.648 | AC50: =(Y50+Z50+AA50+AB50)/4 -> 0
C51: 01/04 T2 | D51: =D50 -> 2014-04-01 | G51: 1872 | H51: 6.048 | K51: 11321.856 | AC51: 0
C52: 01/04 T3 | D52: =D50 -> 2014-04-01 | G52: 1872 | H52: 6.048 | K52: 11321.856 | AC52: 0
C53: 02/04 T1 | D53: =D52+1 -> 2014-04-02 | G53: 495 | H53: 6.048 | I53: 900 | J53: 5.184 | K53: =(G53*H53+I53*J53) -> 7659.36 | AC53: 0
C54: 02/04 T2 | D54: =D53 -> 2014-04-02 | G54: 1268 | H54: 5.184 | K54: =(G54*H54+I54*J54) -> 6573.312 | AC54: 0
C55: 02/04 T3 | D55: =D53 -> 2014-04-02 | G55: 1700 | H55: 5.184 | K55: 8812.8 | AC55: 0
C56: 03/04 T1 | D56: =D55+1 -> 2014-04-03 | G56: 393 | H56: 6.048 | K56: 2376.864 | AC56: 0
C57: 03/04 T2 | D57: =D56 -> 2014-04-03 | K57: 0 | AC57: 0
C58: 03/04 T3 | D58: =D56 -> 2014-04-03 | G58: 864 | H58: 5.184 | K58: 4478.976 | AC58: 0
C59: 04/04 T1 | D59: =D58+1 -> 2014-04-04 | G59: 1966 | H59: 6.048 | K59: 11890.368 | AC59: 0
C60: 04/04 T2 | D60: =D59 -> 2014-04-04 | G60: 600 | H60: 6.048 | K60: 3628.8 | AC60: 0
C61: 04/04 T3 | D61: =D59 -> 2014-04-04 | G61: 2200 | H61: 5.184 | K61: 11404.8 | AC61: 0
C62: 05/04 T1 | D62: =D61+1 -> 2014-04-05 | G62: 2608 | H62: 5.184 | K62: 13519.872
C63: 05/04 T2 | D63: =D62 -> 2014-04-05 | G63: 1900 | H63: 5.184 | K63: 9849.6
C64: 05/04 T3 | D64: =D62 -> 2014-04-05 | G64: 2310 | H64: 5.184 | K64: 11975.04
C65: 06/04 T1 | D65: =D64+1 -> 2014-04-06 | G65: 1469 | H65: 5.184 | K65: 7615.296
C66: 06/04 T2 | D66: =D65 -> 2014-04-06 | H66: 5.184 | K66: 0
C67: 06/04 T3 | D67: =D65 -> 2014-04-06 | G67: 1600 | H67: 5.184 | K67: 8294.4
B73: Fecha | C73: Ejecutado | D73: Ejecutado Acum | E73: Programado | F73: Programado Acum | G73: Dif | I73: Ejecutado | J73: Ejecutado Acum | K73: Programado | L73: Programado Acum | M73: Dif
B74: 2014-03-17 | C74: =SUMIF($D$5:$K$46,"=17/03",$K$5:$K$46) -> 0 | D74: =C74 -> 0 | E74: =217228/7 -> 31032.57143 | F74: =E74 -> 31032.57143 | G74: =F74-D74 -> 31032.57143 | H74: 12 | I74: =SUM(C74:C80) -> 0 | J74: =I74 -> 0 | K74: =SUM(E74:E80) -> 217228 | L74: =K74 -> 217228 | M74: =L74-J74 -> 217228
B75: 2014-03-18 | C75: =SUMIF($D$5:$K$46,"=18/03",$K$5:$K$46) -> 0 | D75: =C75+D74 -> 0 | E75: =E74 -> 31032.57143 | F75: =F74+E75 -> 62065.14286 | G75: 62065.14286 | H75: 13 | I75: =SUM(C81:C87) -> 0 | J75: =J74+I75 -> 0 | K75: =SUM(E81:E87) -> 242651 | L75: =L74+K75 -> 459879 | M75: =L75-J75 -> 459879
B76: 2014-03-19 | C76: =SUMIF($D$5:$K$46,"=19/03",$K$5:$K$46) -> 0 | D76: 0 | E76: =E74 -> 31032.57143 | F76: =F75+E76 -> 93097.71429 | G76: 93097.71429 | H76: 14 | I76: =SUM(C88:C94) -> 0 | J76: =J75+I76 -> 0 | K76: =SUM(E88:E94) -> 245625 | L76: 705504 | M76: =L76-J76 -> 705504
B77: 2014-03-20 | C77: =SUMIF($D$5:$K$46,"=20/03",$K$5:$K$46) -> 0 | D77: 0 | E77: =E74 -> 31032.57143 | F77: 124130.2857 | G77: 124130.2857 | H77: 15 | I77: =SUM(C95:C101) -> 269724.8 | J77: 269724.8 | K77: =SUM(E95:E101) -> 280845 | L77: 986349 | M77: =L77-J77 -> 716624.2
B78: 2014-03-21 | C78: =SUMIF($D$5:$K$46,"=21/03",$K$5:$K$46) -> 0 | D78: 0 | E78: =E74 -> 31032.57143 | F78: 155162.8571 | G78: 155162.8571 | H78: 16 | I78: =SUM(C102:C108) -> 276551 | J78: 546275.8 | K78: =SUM(E102:E108) -> 163900 | L78: 1150249 | M78: =L78-J78 -> 603973.2
B79: 2014-03-22 | C79: =SUMIF($D$5:$K$46,"=22/03",$K$5:$K$46) -> 0 | D79: 0 | E79: =E74 -> 31032.57143 | F79: 186195.4286 | G79: 186195.4286
B80: 2014-03-23 | C80: =SUMIF($D$5:$K$46,"=23/03",$K$5:$K$46) -> 0 | D80: 0 | E80: =E74 -> 31032.57143 | F80: 217228 | G80: 217228
B81: 2014-03-24 | C81: =SUMIF($D$5:$K$46,"=24/03",$K$5:$K$46) -> 0 | D81: 0 | E81: =242651/7 -> 34664.42857 | F81: 251892.4286 | G81: 251892.4286
B82: 2014-03-25 | C82: =SUMIF($D$5:$K$46,"=25/03",$K$5:$K$46) -> 0 | D82: 0 | E82: =E81 -> 34664.42857 | F82: 286556.8571 | G82: 286556.8571
B83: 2014-03-26 | C83: =SUMIF($D$5:$K$46,"=26/03",$K$5:$K$46) -> 0 | D83: 0 | E83: =E81 -> 34664.42857 | F83: 321221.2857 | G83: 321221.2857
B84: 2014-03-27 | C84: =SUMIF($D$5:$K$46,"=27/03",$K$5:$K$46) -> 0 | D84: 0 | E84: =E81 -> 34664.42857 | F84: 355885.7143 | G84: 355885.7143
B85: 2014-03-28 | C85: =SUMIF($D$5:$K$46,"=28/03",$K$5:$K$46) -> 0 | D85: 0 | E85: =E81 -> 34664.42857 | F85: 390550.1429 | G85: 390550.1429
B86: 2014-03-29 | C86: =SUMIF($D$5:$K$46,"=29/03",$K$5:$K$46) -> 0 | D86: 0 | E86: =E81 -> 34664.42857 | F86: 425214.5714 | G86: 425214.5714
B87: 2014-03-30 | C87: =SUMIF($D$5:$K$46,"=30/03",$K$5:$K$46) -> 0 | D87: 0 | E87: =E81 -> 34664.42857 | F87: 459879 | G87: 459879
B88: 2014-03-31 | C88: =SUMIF($D$5:$K$67,"=31/03",$K$5:$K$67) -> 0 | D88: 0 | E88: =245625/7 -> 35089.28571 | F88: 494968.2857 | G88: 494968.2857
B89: 2014-04-01 | C89: =SUMIF($D$5:$K$67,"=01/04",$K$5:$K$67) -> 0 | D89: 0 | E89: =E88 -> 35089.28571 | F89: 530057.5714 | G89: 530057.5714
B90: 2014-04-02 | C90: =SUMIF($D$5:$K$67,"=02/04",$K$5:$K$67) -> 0 | D90: 0 | E90: =E88 -> 35089.28571 | F90: 565146.8571 | G90: 565146.8571
B91: 2014-04-03 | C91: =SUMIF($D$5:$K$67,"=03/04",$K$5:$K$67) -> 0 | D91: 0 | E91: =E88 -> 35089.28571 | F91: 600236.1429 | G91: 600236.1429
B92: 2014-04-04 | C92: =SUMIF($D$5:$K$67,"=04/04",$K$5:$K$67) -> 0 | D92: 0 | E92: =E88 -> 35089.28571 | F92: 635325.4286 | G92: 635325.4286
B93: 2014-04-05 | C93: =SUMIF($D$5:$K$67,"=05/04",$K$5:$K$67) -> 0 | D93: 0 | E93: =E88 -> 35089.28571 | F93: 670414.7143 | G93: 670414.7143
B94: 2014-04-06 | C94: =SUMIF($D$5:$K$67,"=06/04",$K$5:$K$67) -> 0 | D94: 0 | E94: =E88 -> 35089.28571 | F94: 705504 | G94: 705504
B95: 2014-04-07 | C95: 46710.8 | D95: 46710.8 | E95: =280845/7 -> 40120.71429 | F95: 745624.7143 | G95: 698913.9143
B96: 2014-04-08 | C96: 46656 | D96: 93366.8 | E96: =E95 -> 40120.71429 | F96: 785745.4286 | G96: 692378.6286
B97: 2014-04-09 | C97: 43385 | D97: 136751.8 | E97: =E95 -> 40120.71429 | F97: 825866.1429 | G97: 689114.3429
B98: 2014-04-10 | C98: 26127 | D98: 162878.8 | E98: =E95 -> 40120.71429 | F98: 865986.8571 | G98: 703108.0571
B99: 2014-04-11 | C99: 37707 | D99: 200585.8 | E99: =E95 -> 40120.71429 | F99: 906107.5714 | G99: 705521.7714
B100: 2014-04-12 | C100: 30586 | D100: 231171.8 | E100: =E95 -> 40120.71429 | F100: 946228.2857 | G100: 715056.4857
B101: 2014-04-13 | C101: 38553 | D101: 269724.8 | E101: =E95 -> 40120.71429 | F101: 986349 | G101: 716624.2
B102: 2014-04-14 | C102: 39616 | D102: 309340.8 | E102: =163900/7 -> 23414.28571 | F102: 1009763.286 | G102: 700422.4857
B103: 2014-04-15 | C103: 33217 | D103: 342557.8 | E103: =E102 -> 23414.28571 | F103: 1033177.571 | G103: 690619.7714
B104: 2014-04-16 | C104: 27905 | D104: 370462.8 | E104: =E102 -> 23414.28571 | F104: 1056591.857 | G104: 686129.0571
B105: 2014-04-17 | C105: 40435 | D105: 410897.8 | E105: =E102 -> 23414.28571 | F105: 1080006.143 | G105: 669108.3429
B106: 2014-04-18 | C106: 39766 | D106: 450663.8 | E106: =E102 -> 23414.28571 | F106: 1103420.429 | G106: 652756.6286
B107: 2014-04-19 | C107: 46332 | D107: 496995.8 | E107: =E102 -> 23414.28571 | F107: 1126834.714 | G107: 629838.9143
B108: 2014-04-20 | C108: 49280 | D108: 546275.8 | E108: =E102 -> 23414.28571 | F108: 1150249 | G108: 603973.2

Sheet Planes
B3: Nro. | C3: PLANES DE ACCION | D3: RESPONSABLE | E3: GENERADO | F3: FECHA | G3: ESTADO | K3: Defectos
B4: 1 | C4: Anclar las máquinas etiquetadoras | D4: Mantenimiento | E4: 2014-03-23 | F4: 2014-04-03 | G4: Hecho | H4: realizar el 03/04 | K4: Mejoras
B5: 2 | C5: Reubicar o cubrir con canaleta de piso al cableado eléctrico de alimentación de las etiquetadoras. | D5: Mantenimiento | E5: 2014-03-20 | F5: 2014-03-23 | G5: Hecho | K5: Procedimientos
B6: 3 | C6: Asegurar el stock de fusibles: 100 unidades por cada BOSCH, almacenados en una cajita rotulada (tener en cuenta que hay dos tamaños de fusible) y dejarlo en cada máquina. | D6: Mantenimiento | F6: 2014-03-18 | G6: Hecho
B7: 4 | C7: Instalar un portafusibles externos para asegurar cambio rápido. (Colocar Int. Termomagnetico para evitar cambio de fusibles) | D7: Mantenimiento | E7: 2014-03-20 | F7: 2014-03-31 | G7: Hecho | H7: 0.75 | I7: Falta Bosch 2
B8: 5 | C8: Instalar tachos para residuos de liner por cada máquina. | D8: Nave | F8: 2014-03-18 | G8: Hecho
B9: 6 | C9: Habilitar 4 banquitos (metálicos, plastico de las siguientes caracteristicas: altura 25 cm, plataforma: 50 x 30 cm). Ojo que no deslice sobre el piso. REQ 62525 | D9: Mantenimiento | E9: 2014-03-18 | F9: 2014-03-31 | G9: Hecho | H9: Falta que le pongan antideslizantes
B10: 7 | C10: Realizar ajuste de parantes a base de etiquetadoras. | D10: Calidad | E10: 2014-03-23 | F10: 2014-03-18 | G10: Hecho
B11: 8 | C11: Reordenar cableado de etiquetadoras para que no obstruya guarda de empacadoras. | D11: Calidad | F11: 2014-03-18 | G11: Hecho
B12: 9 | C12: Preparar plan de cambio rápido de etiquetadora backup. | D12: Proyectos | F12: 2014-03-18 | G12: Hecho
B13: 10 | C13: Revisar el sensor de circulina de corte en buffer | D13: Proyectos | F13: 2014-03-20 | G13: Hecho
B14: 11 | C14: Implementar KAIZEN por sistema de corte de buffer (nuevos sensores y alarma en laminado) | D14: Calidad | E14: 2014-03-23 | F14: 2014-04-15 | G14: Atrazado | H14: 2014-04-03
B15: 12 | C15: Instalar la bocina de corte de buffer | D15: Calidad | F15: 2014-03-20 | G15: Hecho
B16: 13 | C16: Sensibilidad de etiquedora 4 | D16: Proyectos | F16: 2014-03-20 | G16: Hecho
B17: 14 | C17: Revisar ROTIA (2da y 4ta zona) | D17: Mantenimiento | F17: 2014-03-20 | G17: Hecho
B18: 15 | C18: Revisión de mordaza de BOSCH 2 | D18: Proyectos | F18: 2014-03-20 | G18: Hecho
B19: 16 | C19: Implementar botonera adicional cerca de etiquetadoras | D19: Calidad | E19: 2014-03-23 | F19: 2014-04-03 | G19: Hecho | H19: 2014-04-03
B20: 17 | C20: Regular sistema de autoalineamiento de banda POS 0270 | D20: Proyectos | F20: 2014-03-21 | G20: Hecho
B21: 18 | C21: Cambio de rodamientos de banda alimentación Houdijk POS 3 (GA5E7426, GA5E7422) | D21: Mantenimiento | F21: 2014-03-23 | G21: Hecho
B22: 19 | C22: Reponer stock de sensores inductivos (4 unid) | D22: Mantenimiento | F22: 2014-03-21 | G22: Hecho
B23: 20 | C23: Asegurar estabilidad mecánica de aplicadores (vibración alta) | D23: Calidad | E23: 2014-03-22 | F23: 2014-03-23 | G23: Hecho
B24: 21 | C24: Reforzar los equipos y disponer de un maquinista “flotante” por turno para soporte en la operación de etiquetadoras. | D24: Nave | F24: 2014-03-18 | G24: Hecho
B25: 22 | C25: Reforzar LUP de paro de línea para evitar el incremento de yield | D25: Nave | F25: 2014-03-20 | G25: Hecho
B26: 23 | C26: Asegurar gente para todos los turnos | D26: Nave | F26: 2014-03-20 | G26: Hecho
B27: 24 | C27: Definir refuerzo en T3 durante cena | D27: Nave | F27: 2014-03-20 | G27: Hecho
B28: 25 | C28: Rebobinar carretes de etiquetas al diámetro máximo (aprox 370 mm) y pedir que las etiquetas que vendrán a futuro lleguen con esta medida. | D28: Nave | F28: 2014-03-21 | G28: Anulado | H28: Ya no es necesario: Con los venturis se eliminaron la mayor cantidad de paros menores por cambio o retiro de liner
B29: 26 | C29: Probar paño con mayor rugosidad para reducir tiempo de limpieza de rodillos. | D29: Nave | F29: 2014-03-18 | G29: Hecho
B30: 27 | C30: Probar cinta amarilla (usada para marcar tránsito en piso) para mejorar el empalme de etiquetas. | D30: Nave | F30: 2014-03-18 | G30: Hecho
B31: 28 | C31: Traer personal de 3M para definir una mejor cinta de pegue para los empalmes | D31: Nave | F31: 2014-03-20 | G31: Hecho
B32: 29 | C32: Traer a Kurt a la línea y a Calidad para medir COF (todas las variables del papel primario y secundario | D32: Nave | F32: 2014-03-20 | G32: Hecho
B33: 30 | C33: Segregar bobinas de acuerdo al gramaje | D33: Nave | F33: 2014-03-21 | G33: Hecho
B34: 31 | C34: Probar el sellado de rodillos con tela teflón. | D34: Nave | F34: 2014-03-18 | G34: Hecho
B35: 32 | C35: Preparar y difundir LUP para maquinistas con sgtes. rutinas operativas de los aplicadores de etiquetas: o Realizar una limpieza de rodillos cada 4 horas. o Realizar la limpieza del sensor capacitivo de etiquetas cada 8 horas o Retirar el liner a la mitad y al final de cada bobina de etiquetas. | D35: Nave | F35: 2014-03-18 | G35: Hecho
B36: 33 | C36: No descuidar los controles de calidad en la línea (PCC, Sensorial, Peso, Hermeticidad, etc). | D36: Calidad | F36: Permanente | G36: Hecho
B37: 34 | C37: Se requiere dotar de un juego de llaves milimétricos Allen a cada BOSCH. | D37: Nave | F37: 2014-03-20 | G37: Hecho
B38: 35 | C38: Asegurar que se cuenta con la información técnica sobre el funcionamiento interno del equipo para mejorar las intervenciones de las aplicadoras de etiquetas (planos, diagramas, etc). | D38: Proyectos | F38: 2014-03-18 | G38: Hecho
B39: 36 | C39: Poner control visual en punto de corte | D39: Calidad | F39: 2014-03-20 | G39: Hecho | H39: Se considera estructura en "X"
B40: 37 | C40: LUP de reseteo de ETE | D40: Calidad | F40: 2014-03-20 | G40: Hecho
B41: 38 | C41: Mostrar resultados por turno en la línea de producción: frente a las Bosh | D41: Calidad | F41: 2014-03-20 | G41: Hecho
B42: 39 | C42: Mostrar medidores diarios a traquear por turno por Bosch: paros, GE, minutos producidos, etc. | D42: Calidad | F42: 2014-03-20 | G42: Hecho
B43: 40 | C43: Se define que los maquinistas no deben regular las cuchillas de corte. Eso es responsabilidad de Mantenimiento | D43: Nave | F43: 2014-03-20 | G43: Hecho
B44: 41 | C44: LUP para asegurar parámetros de regulación de mordazas | D44: Nave | F44: 2014-03-21 | G44: Hecho
B45: 42 | C45: Revisión turno a turno de regulación de mordazas | D45: Mantenimiento | F45: 2014-03-21 | G45: Hecho
B46: 43 | C46: Realizar limpieza de succión: 1 grande en 1T, y dos chicas en 2do y 3er turno | D46: Calidad | F46: 2014-03-21 | G46: Hecho
B47: 44 | C47: Realizar el incremento de velocidad a 17 RPM | D47: Mantenimiento | F47: 2014-03-21 | G47: Hecho
B48: 45 | C48: Entrenar a volantes en limpieza de succión de máquinas BOSCH | D48: Mantenimiento | F48: 2014-03-24 | G48: Atrazado
B49: 46 | C49: Definir lista de herramientas necesarias | D49: Mantenimiento | F49: 2014-03-21 | G49: Hecho
B50: 47 | C50: Se va a cortar 7 minutos en vez de 5 | D50: Mantenimiento | E50: 2014-03-22 | F50: Permanente | G50: Hecho
B51: 48 | C51: Verificar cumplimiento de altura de sandwich en PETERS | D51: Calidad | E51: 2014-03-22 | F51: Permanente | G51: Hecho
B52: 49 | C52: Definir origen de polvillo que llega con el sandwich a Empaque | D52: Nave | E52: 2014-03-22 | F52: 2014-03-22 | G52: Hecho
B53: 50 | C53: Completar información de Merma buffer de toda la semana | D53: Nave | E53: 2014-03-22 | F53: 2014-03-22 | G53: Hecho
B54: 51 | C54: Convocar a una reunión con Kurt para revisar problemas de material de empaque (incluye cambio de taca) | D54: Nave | E54: 2014-03-22 | F54: 2014-03-22 | G54: Hecho
B55: 52 | C55: Prueba de método y tiempos de corte (foco en parada de ROTIA) | D55: Nave | E55: 2014-03-22 | F55: 2014-03-22 | G55: Hecho
B56: 53 | C56: Entrenamiento en regulación de presión de rodillos en etiquetadora | D56: Nave | E56: 2014-03-22 | F56: 2014-03-22 | G56: Hecho
B57: 54 | C57: Reforzar a auxiliares para asegurar la calidad de sandwiches que sube a Empaque durante refrigerios | D57: Calidad | E57: 2014-03-22 | F57: Permanente | G57: Hecho
B58: 55 | C58: Reforzar LUP de limpieza de rodillos | D58: Mantenimiento | E58: 2014-03-22 | F58: 2014-03-22 | G58: Hecho
B59: 56 | C59: Reparar etiquetadora BOSCH 4 | D59: Mantenimiento | E59: 2014-03-25 | F59: 2014-03-25 | G59: Hecho
B60: 57 | C60: Asegurar un técnico de mantenimiento por turno | D60: Mantenimiento | E60: 2014-03-25 | F60: 2014-03-25 | G60: Hecho
B61: 58 | C61: Definir punto de regulación para sello circular | D61: Nave | E61: 2014-03-25 | F61: 2014-03-25 | G61: Hecho
B62: 59 | C62: Analizar problemas de sellado y corte debido a nuevo material de empaque | D62: Nave | E62: 2014-03-25 | F62: 2014-03-25 | G62: Hecho
B63: 60 | C63: Reparar portafusibles de etiquetadora de BOSCH 3 | D63: Mantenimiento | E63: 2014-03-25 | F63: 2014-03-25 | G63: Hecho | H63: 27/03 AM
B64: 61 | C64: Asegurar preparación de crema más compacta | D64: Nave | E64: 2014-03-25 | F64: 2014-03-25 | G64: Hecho
B65: 62 | C65: Bloquear luz solar en tramo de banda buffer | D65: Calidad | E65: 2014-03-25 | F65: 2014-03-31 | G65: Cancelado
B66: 63 | C66: Incluir en la reunión a un representante de Peter y otro de Making | D66: Nave | E66: 2014-03-25 | F66: 2014-03-25 | G66: Hecho
B67: 64 | C67: Revisión de estado de cadenas de arastre BOSCH 1 y 2 | D67: Mantenimiento | E67: 2014-03-25 | F67: 2014-03-25 | G67: Hecho
B68: 65 | C68: Corrección de tensión de alambre de pista en ambas PETERs (Durante AM) | D68: Nave | E68: 2014-03-25 | F68: 2014-03-27 | G68: Hecho
B69: 66 | C69: Revisar rangos de velocidad de empacadoras BOSCH 1 y BOSCH 2 | D69: Nave | E69: 2014-03-25 | F69: 2014-03-25 | G69: Hecho
B70: 67 | C70: Inspección de anillo Nro 2 lado operador del molde TF4 | D70: Nave | E70: 2014-03-31 | F70: 2014-03-31 | G70: Hecho
B71: 68 | C71: Cambio de banda de corte en Laminado | D71: Mantenimiento | E71: 2014-03-26 | F71: 2014-03-30 | G71: Hecho
B72: 69 | C72: Aumentar vibración de canales Peter 1 | D72: Mantenimiento | E72: 2014-03-26 | F72: 2014-03-26 | G72: Hecho
B73: 70 | C73: Cambio de kit de retenes de 4 unidades de crema (fuga de crema) | D73: Mantenimiento | E73: 2014-03-26 | F73: 2014-03-27 | G73: Hecho
B74: 71 | C74: Revisión de sistema de autolimpieza de dedos en PETER | D74: Mantenimiento | E74: 2014-03-26 | F74: 2014-03-26 | G74: Hecho | N74: Planes de acción | O74: Tipo
B75: 72 | C75: Tener repuesto a la mano de banda sincrónica Racupack | D75: Nave | E75: 2014-03-26 | F75: 2014-03-26 | G75: Cancelado
B76: 73 | C76: Compra de llaves mixtas 10 y 13 para Empaque | D76: Nave | E76: 2014-03-26 | F76: 2014-03-26 | G76: Hecho | N76: Instalación de Venturi en etiquetadoras | O76: Kaizen
B77: 74 | C77: Compra de llaves mixtas 8 y 10 para Peters | D77: Nave | E77: 2014-03-26 | F77: 2014-03-26 | G77: Hecho | N77: Implementar botoneras adicionales cerca a etiquetadoras | O77: Kaizen
B78: 75 | C78: Generar pedido a Mtto vía ST | D78: Calidad | E78: 2014-03-26 | F78: 2014-03-26 | G78: Hecho | N78: Coordinación de cortes de producción para evitar la generación de merma (reducción de YIELD) | O78: LUP
B79: 76 | C79: Cambio de faja sincronica Racupack 4 | D79: Mantenimiento | E79: 2014-03-26 | F79: 2014-03-26 | G79: Hecho | N79: Cambios de rodamientos en bandas houdijk y empaquetadoras primarias. | O79: Anomalía
B80: 77 | C80: Reparación de Aspiradora BOSH Nº2 | D80: Mantenimiento | E80: 2014-03-25 | F80: 2014-03-25 | G80: Hecho | N80: Reparación de fuga de volcador de crema en Peters | O80: Anomalía
B81: 78 | C81: Revisión de sensor de guarda de RACUTRACK 1 | D81: Mantenimiento | E81: 2014-03-28 | F81: 2014-03-28 | G81: Hecho | N81: Ajustar resortes de altura de Peters | O81: Anomalía
B82: 79 | C82: Reforzar traslapes de personal de Mantenimiento (técnicos reciben requerimientos cerca del cambio de turno, y no estarían comunicando al que lo releva) | D82: Mantenimiento | E82: 2014-03-28 | F82: 2014-03-28 | G82: Hecho | N82: Tachos de residuo de liner | O82: Kaizen
B83: 80 | C83: Regular etiquetadora BOSCH 1 | D83: Mantenimiento | E83: 2014-03-28 | F83: 2014-03-28 | G83: Hecho | N83: Bocina en buffer | O83: Kaizen
B84: 81 | C84: Aclarar el requerimiento de que el técnico exclusivo para L5 es para Empaque (no sólo etiquetadoras) | D84: Mantenimiento | E84: 2014-03-28 | F84: 2014-03-28 | G84: Hecho | N84: Coordinación en caso de nuevo material de empaque | O84: LUP
B85: 82 | C85: Reparación de elevador hidráulico de paletas en Cremas | D85: Calidad | E85: 2014-03-28 | F85: 2014-03-28 | G85: Atrazado | H85: Verificar
B86: 83 | C86: Revisión de funcionamiento de Peter 1 (en 2 ocasiones no quiso arrancar después de paradas) | D86: Mantenimiento | E86: 2014-03-28 | F86: 2014-04-03 | G86: Cancelado
B87: 84 | C87: Regulación de velocidades de bandas en entrada de ROTIA (genera acumulación) | D87: Mantenimiento | E87: 2014-03-28 | F87: 2014-03-28 | G87: Hecho
B88: 85 | C88: Definir lista de intervenciónes de reparación para el domingo | D88: Nave | E88: 2014-03-28 | F88: 2014-03-28 | G88: Hecho
B89: 86 | C89: Cambio de fleje (material de banda) de tolva de laminado (anterior cambio se realizó con Jacinto Flores) | D89: Mantenimiento | E89: 2014-03-28 | F89: 2014-04-15 | G89: Hecho
B90: 87 | C90: Enviar a calibrar el vernier de Peter e ingresarlo en lista de Metrología | D90: Mantenimiento | E90: 2014-03-31 | F90: 2014-04-15
B91: 88 | C91: Reunión con Carlos Avalos para mejorar servicio de LIMPIOMAX | D91: Nave | E91: 2014-03-31 | F91: 2014-03-31 | G91: Hecho
B92: 89 | C92: Traer de urgencia retenes de dosificadores de crema (STENCILS): 4 juegos para cambio más adicionales como repuesto | D92: Mantenimiento | E92: 2014-03-31 | F92: 2014-03-31 | G92: Hecho | H92: Verlo con Tecnifajas fabricación local
B93: 90 | C93: Retirar cuarto de AM de zona Peters | D93: Mantenimiento | E93: 2014-03-31 | F93: 2014-04-13 | G93: Hecho
B94: 91 | C94: Compartir lista de personal de técnicos de Mtto asignados a Empaque L5 y maquinistas soporte de Empaque L5 por cada turno | D94: Mantenimiento | E94: 2014-03-31 | F94: 2014-03-31 | G94: Hecho
B95: 92 | C95: Asegurar mix de auxiliares (antiguos y nuevos) en cada posición para evitar impacto por curva de aprendizaje. | D95: Nave | E95: 2014-03-31 | F95: 2014-03-31 | G95: Hecho
B96: 93 | C96: Revisar si continúa goteo por conexión de agua en el interior de tablero de Peerless | D96: Nave | E96: 2014-03-31 | F96: 2014-03-31 | G96: Hecho | H96: Ya no gotea
B97: 94 | C97: Acelerar 2 Kaizen para contener condensado en Peerless y lubricante en cadena | D97: Calidad | E97: 2014-03-31 | F97: 2014-03-31 | G97: Atrazado
B98: 95 | C98: Reforzar a técnicos asignados a Empaque L5 que deben realizar sus traslapes de turno en el área de Empaque, y que mantengan una comunicación constante con los maquinistas soportes | D98: Mantenimiento | E98: 2014-03-31 | F98: 2014-03-31 | G98: Hecho | H98: Dar feedback
B99: 96 | C99: Revisar tamaño de repuestos de banda de corte en Laminado (muy larga) | D99: Mantenimiento | E99: 2014-03-31 | F99: 2014-03-31 | G99: Atrazado | H99: Propuesta de como se podría regular / evalaur repuestos
B100: 97 | C100: Analizar desgaste prematuro de banda de corte | D100: Nave | E100: 2014-03-31 | F100: 2014-03-31 | G100: Cancelado
B101: 98 | C101: Volver a calibrar ZERO del sistema de presión de rodillo de Laminado | D101: Mantenimiento | E101: 2014-03-31 | F101: 2014-04-10
B102: 99 | C102: Instalar nuevos anillos en molde Nro 1 de Oreo Regular | D102: Mantenimiento | E102: 2014-03-31 | F102: 2014-04-11 | G102: Hecho
B103: 100 | C103: Cambio de un anillo en molde Nro 2 de de Oreo Regular | D103: Mantenimiento | E103: 2014-03-31 | F103: 2014-04-18
B104: 101 | C104: Probar el sobrepeso del molde con anillos nuevos | D104: Nave | E104: 2014-03-31 | F104: 2014-04-14
B105: 102 | C105: Considerar los detalles del cambio temporal de azucar (grano fino a molida) | D105: Proyectos | E105: 2014-03-31 | F105: 2014-03-31 | G105: Hecho
B106: 103 | C106: Implementar Kaizen: modificación de protector de dosificadores de aceite de cadena en Peter (mucho polvillo) | D106: Calidad | E106: 2014-03-31 | F106: 2014-03-31 | G106: Atrazado
B107: 104 | C107: Revisión de estiramiento de cadenas de arrastre en Peter 1 y Peter 2 | D107: Mantenimiento | E107: 2014-03-31 | F107: 2014-03-31 | G107: Hecho
B108: 105 | C108: Instalación de Venturi BOSCH 4 | D108: Mantenimiento | E108: 2014-03-31 | F108: 2014-03-31 | G108: Hecho
B109: 106 | C109: Realizar ajuste de terminales eléctricos en tableros de Empaque (primarias, Racupack y secundarias) | D109: Mantenimiento | E109: 2014-03-31 | F109: 2014-04-03 | G109: Hecho
B110: 107 | C110: Ajuste de resortes de reguladores de altura de sandwich de ambar PETER | D110: Nave | E110: 2014-03-27 | F110: 2014-03-27 | G110: Hecho
B111: 108 | C111: Compra de 20 resortes para reguladores de altura de sandwich | D111: Mantenimiento | E111: 2014-03-31 | F111: 2014-04-03 | G111: Hecho
B112: 109 | C112: Cambio del plan de Producción para semana 14 (por cambio en fecha de limpieza) | D112: Nave | E112: 2014-03-31 | F112: 2014-03-31 | G112: Hecho
B113: 110 | C113: Calibrar auto alineamiento de banda buffer | D113: Mantenimiento | E113: 2014-03-31 | F113: 2014-04-01 | G113: Hecho
B114: 111 | C114: Revisión por parte de Mtto y CIPSA a equipos RX (se fueron a falla por caída de tensión) | D114: Mantenimiento | E114: 2014-04-01 | F114: 2014-04-01 | G114: Hecho
B115: 112 | C115: Se establece que bobina con problemas de fricción se retira de línea y se devuelve al Almacén con nota de rechazo | D115: Nave | E115: 2014-04-01 | F115: 2014-04-01 | G115: Hecho
B116: 113 | C116: Coordinar con Calidad para usar silicona líquida en empacado secundario | D116: Nave | E116: 2014-04-01 | F116: 2014-04-01 | G116: Hecho | H116: Si se puede
B117: 114 | C117: Cambio de escobillas de banda de salida de mordaza en todas las BOSCH primarias | D117: Mantenimiento | E117: 2014-04-01 | F117: 2014-04-30 | H117: Traer vía DHL
B118: 115 | C118: Cambio de rodamiento en polín de mesa de alimentación BOSCH 1 POS GA5-E7228 | D118: Mantenimiento | E118: 2014-04-01 | F118: 2014-04-03 | G118: Hecho
B119: 116 | C119: Cambio de rodamiento en banda Houdijk BOSCH 1 POS GA5-E7218 | D119: Mantenimiento | E119: 2014-04-01 | F119: 2014-04-03 | G119: Hecho
B120: 117 | C120: Analizar causa de parámetros diferentes en galleta (altura, pH) | D120: Nave | E120: 2014-04-01 | F120: 2014-04-01 | G120: Hecho
B121: 118 | C121: Cambio de rodamiento de polín POS 25 de Houdijk alimentación a PETERS | D121: Mantenimiento | E121: 2014-04-01 | F121: 2014-04-01 | G121: Hecho
B122: 119 | C122: Revisar nivel sonoro de alarma buffer en Empaque | D122: Calidad | E122: 2014-04-01 | F122: 2014-04-01 | G122: Atrazado
B123: 120 | C123: Cambio de 4 válvulas manuales para sistema de succión de empaque primario | D123: Mantenimiento | E123: 2014-04-01 | F123: 2014-04-17 | H123: Pendiente: evaluación del ya instalado
B124: 121 | C124: Acondicionar recipiente para condensado de tablero de Horno | D124: Mantenimiento | E124: 2014-04-01 | F124: 2014-04-13
B125: 122 | C125: Analizar y controlar el sobrepeso de la galleta | D125: Nave | E125: 2014-04-01 | F125: 2014-04-01 | G125: Hecho
B126: 123 | C126: Implementar la carta de control de altura para sandwich | D126: Nave | E126: 2014-04-01 | F126: 2014-04-01 | G126: Hecho
B127: 124 | C127: Cambio de rodamiento en banda Houdijk BOSCH 1 POS GA5-E7216 | D127: Mantenimiento | E127: 2014-04-02 | F127: 2014-04-10 | G127: Hecho
B128: 125 | C128: Cambio de rodamiento en banda Houdijk BOSCH 1 POS GA5-E7222 | D128: Mantenimiento | E128: 2014-04-02 | F128: 2014-04-03 | G128: Hecho
B129: 126 | C129: Cambio de rodamiento en banda Houdijk BOSCH 2 POS GA5-E7318 | D129: Mantenimiento | E129: 2014-04-02 | F129: 2014-04-03 | G129: Hecho
B130: 127 | C130: Cambio de 2 rodamientos en banda Houdijk BOSCH 3 POS GA5-E7418 | D130: Mantenimiento | E130: 2014-04-02 | F130: 2014-04-03 | G130: Hecho
B131: 128 | C131: Cambio de rodamiento en banda Houdijk BOSCH 3 POS GA5-E7420 | D131: Mantenimiento | E131: 2014-04-02 | F131: 2014-04-03 | G131: Hecho
B132: 129 | C132: Cambio de rodamiento en banda Houdijk BOSCH 3 POS GA5-E7422 | D132: Mantenimiento | E132: 2014-04-02 | F132: 2014-04-03 | G132: Hecho
B133: 130 | C133: Cambio de rodamiento en banda Houdijk BOSCH 4 POS GA5-E7522 | D133: Mantenimiento | E133: 2014-04-02 | F133: 2014-04-03 | G133: Hecho
B134: 131 | C134: Cambio de 3 sensores de acercamiento de Houdijk POS GA5-E7514 | D134: Mantenimiento | E134: 2014-04-02 | F134: 2014-04-10
B135: 132 | C135: Implementar KAIZEN por cambio de pernos cabeza hexagonal a pernos mariposa en los formatos de las 4 BOSCH secundarias | D135: Calidad | E135: 2014-04-02 | F135: 2014-04-10 | G135: Atrazado
B136: 133 | C136: Independizar las fuentes de energía de los equipos de RX | D136: Mantenimiento | E136: 2014-04-04 | F136: 2014-04-06 | G136: Hecho
B137: 134 | C137: Todos los cambios en la línea culminan con pruebas | D137: Nave | E137: 2014-04-04 | F137: 2014-04-04 | G137: Hecho
B138: 135 | C138: Revisar balance de sistema Houdijk | D138: Nave | E138: 2014-04-04 | F138: 2014-04-06 | G138: Hecho
B139: 136 | C139: Solicitar llegada de técnico Houdijk | D139: Nave | E139: 2014-04-04 | F139: 2014-04-06 | G139: Hecho
B140: 137 | C140: Crear checklist para arranque y parada de Producción para empaque | D140: Nave | E140: 2014-04-04 | F140: 2014-04-11 | G140: Hecho
B141: 138 | C141: Implementar KAIZEN para circulina por diferencia de temperatura en ROTIA | D141: Calidad | E141: 2014-04-04 | F141: 2014-04-20
B142: 139 | C142: Reemplazar fijación de sensores en pistón de rastrillo Racupack 2 | D142: Mantenimiento | E142: 2014-04-04 | F142: 2014-04-17 | H142: En limpieza de línea
B143: 140 | C143: Realizar lubricación diaria a rodamiento del captador empujador de entrada de Racupack 4, POS GA5-E7570 | D143: Calidad | E143: 2014-04-04 | F143: 2014-04-04 | G143: Hecho
B144: 141 | C144: Implementar checklist de CENTERLINE para empacadoras | D144: Nave | E144: 2014-04-04 | F144: 2014-04-09 | G144: Hecho
B145: 142 | C145: LUP para lavar con agua fría las mangueras de los succionadores | D145: Nave | E145: 2014-04-04 | F145: 2014-04-08 | G145: Hecho
B146: 143 | C146: Incluir en checklist que las tuberías de succionadores queden limpios después de la limpieza | D146: Nave | E146: 2014-04-04 | F146: 2014-04-06 | G146: Hecho
B147: 144 | C147: Regular la altura y posición de regulación de los aplicadores de etiquetas | D147: Calidad | E147: 2014-04-04 | F147: 2014-04-06 | G147: Hecho
B148: 145 | C148: Rearmar polín de entrada a Racupak 4 | D148: Calidad | E148: 2014-04-04 | F148: 2014-04-06 | G148: Hecho
B149: 146 | C149: Invertir escobillas de BOSCH 1,3 y 4 | D149: Calidad | E149: 2014-04-04 | F149: 2014-04-10
B150: 147 | C150: Prueba de elevador de bobinas | D150: Nave | E150: 2014-04-04 | F150: 2014-04-12 | H150: Revisar
B151: 148 | C151: Asegurar homogenización de azucar en crema | D151: Nave | E151: 2014-04-07 | F151: 2014-04-07 | G151: Hecho
B152: 149 | C152: Implementar KAIZEN para ajuste rápido de dedos en PETER | D152: Calidad | E152: 2014-04-07 | F152: 2014-04-20
B153: 150 | C153: Implementar KAIZEN para cambiar conectores en tuberías de unidades de crema | D153: Calidad | E153: 2014-04-07 | F153: 2014-04-20
B154: 151 | C154: Capacitación en ajuste de hilo de corte de crema + entrega de herramienta | D154: Mantenimiento | E154: 2014-04-07 | F154: 2014-04-14
B155: 152 | C155: Instalar obturador a la entrada de venturis | D155: Mantenimiento | E155: 2014-04-07 | F155: 2014-04-17
B156: 153 | C156: Instalar soportes mecánicos para reemplazar soportes temporales en etiquetadoras | D156: Mantenimiento | E156: 2014-04-07 | F156: 2014-04-17
B157: 154 | C157: Cambiar llaves de maletines en PETERS | D157: Nave | E157: 2014-04-07 | F157: 2014-04-17
B158: 155 | C158: Modificar diseño de tope de ajuste de bobinas de etiquetas | D158: Mantenimiento | E158: 2014-04-07 | F158: 2014-04-14
B159: 156 | C159: Modificar soporte de portabobina de etiquetas de cónico a cilíndrico en BOSCH 2 | D159: Mantenimiento | E159: 2014-04-07 | F159: 2014-04-17
B160: 157 | C160: Acercar venturis 1 y 2 hacia salida de liner | D160: Calidad | E160: 2014-04-07 | F160: 2014-04-10 | G160: Hecho
B161: 158 | C161: Definir auxiliares de apoyo para limpieza succionadores por turno | D161: Nave | E161: 2014-04-07 | F161: 2014-04-08 | G161: Hecho
B162: 159 | C162: Implementar stock de repuestos críticos de empaque | D162: Mantenimiento | E162: 2014-04-07 | F162: 2014-04-20
B163: 160 | C163: Definir rutinas de limpieza de empaque con apoyo de Limpiomax | D163: Nave | E163: 2014-04-07 | F163: 2014-04-08 | G163: Hecho
B164: 161 | C164: Revisión de conexiones de botonera adicional instalada (Bosch 2 y 3) | D164: Mantenimiento | E164: 2014-04-07 | F164: 2014-04-10 | G164: Hecho
B165: 162 | C165: Reponer stock de banda de ingreso (azul) de entrega de packs a Racupack | D165: Mantenimiento | E165: 2014-04-07 | F165: 2014-04-20
B166: 163 | C166: Revisar funcionamiento de fleje en Laminado | D166: Nave | E166: 2014-04-07 | F166: 2014-04-10 | G166: Hecho
B167: 164 | C167: Diseñar espacio para almacenar moldes de L5, incluye requerimiento de coches | D167: Nave | E167: 2014-04-07 | F167: 2014-04-15
B168: 165 | C168: Capacitación de Contenido Neto y control de faltantes de RX | D168: Nave | E168: 2014-04-07 | F168: 2014-04-15
B169: 166 | C169: Armar plan para limpieza de línea del jueves 10 | D169: Nave | E169: 2014-04-07 | F169: 2014-04-08 | G169: Hecho
B170: 167 | C170: Cambiar boquilla de pistola de agua caliente de cuarto de lavado PETER | D170: Mantenimiento | E170: 2014-04-08 | F170: 2014-04-10 | G170: Hecho
B171: 168 | C171: Cambiar sensor de tapa inferior de PETER 1 | D171: Mantenimiento | E171: 2014-04-08 | F171: 2014-04-17
B172: 169 | C172: Reparar fuga en manguera de aire comprimido en banda de salida de PETER 2 | D172: Mantenimiento | E172: 2014-04-08 | F172: 2014-04-10 | H172: Verificar
B173: 170 | C173: Implementar regulador de presión (indicador mecánico) de rodillos circulares | D173: Mantenimiento | E173: 2014-04-08 | F173: 2014-04-20
B174: 171 | C174: Capacitación sobre limpieza de chispero de quemadores y definición de frecuencia | D174: Mantenimiento | E174: 2014-04-08 | F174: 2014-04-17
B175: 172 | C175: Comprar un modelo de pistola de lavado con seguro en gatillo | D175: Mantenimiento | E175: 2014-04-08 | F175: 2014-04-20 | G175: Hecho
B176: 173 | C176: Buscar una hidrolavadora para agua caliente | D176: Calidad | E176: 2014-04-08 | F176: 2014-04-20
B177: 174 | C177: Revisión de necesidad de candadeo en limpieza de succionadores | D177: Nave | E177: 2014-04-08 | F177: 2014-04-14
B178: 175 | C178: Revisión de rodamiento de circuito superior de la PETER 2 | D178: Mantenimiento | E178: 2014-04-08 | F178: 2014-04-17
B179: 176 | C179: Estandarizar el cambio rápido de limpieza de succionadores | D179: Nave | E179: 2014-04-09 | F179: 2014-04-14
B180: 177 | C180: Instalar conectores rápidos para mangueras de succión | D180: Mantenimiento | E180: 2014-04-09 | F180: 2014-04-24
B181: 178 | C181: Revisar fuga de hidráulico en volcador # 2 | D181: Proyectos | E181: 2014-04-09 | F181: 2014-04-09 | G181: Hecho
B182: 179 | C182: Cambio de pistón de guarda de mesa de sellado BOSCH 3 | D182: Mantenimiento | E182: 2014-04-09 | F182: 2014-04-10
B183: 180 | C183: Marcado de tuberías de las unidades de crema | D183: Nave | E183: 2014-04-09 | F183: 2014-04-17
B184: 181 | C184: KAIZEN: instalar escobilla rotativa para limpieza de dedos en PETERS | D184: Calidad | E184: 2014-04-09 | F184: 2014-04-17
B185: 182 | C185: Modificación de resortes de regulación de altura de sandwichs (soldarlo contra la arandela) | D185: Mantenimiento | E185: 2014-04-09 | F185: 2014-04-17
B186: 183 | C186: Cambio de flejes de magazine de PETERS (están oxidados) | D186: Mantenimiento | E186: 2014-04-09 | F186: 2014-04-30
B187: 184 | C187: Suministrar 5 llaves para guarda (triángulo) para limpieza rápida | D187: Mantenimiento | E187: 2014-04-09 | F187: 2014-04-17
B188: 185 | C188: Refill de nivel de aceite en volcador de crema # 2 | D188: Mantenimiento | E188: 2014-04-14 | F188: 2014-04-14
B189: 186 | C189: Revisión de baja presión en línea neumática a salida de PETER 2 | D189: Mantenimiento | E189: 2014-04-14
B190: 187 | C190: Revisión de todos los resortes de presión y paralelismo de rodillos en etiquetadoras | D190: Mantenimiento | E190: 2014-04-14
B191: 188 | C191: Marcar posición de rodillos (POKA YOKE) de ajuste en etiquetadoras | D191: Nave | E191: 2014-04-14 | J191: limpieza succion
B192: 189 | C192: Revisión de sistema neumático de volcado de ingredientes menores (succión) | D192: Mantenimiento | E192: 2014-04-14 | J192: nuevos topes de carrete
B193: 190 | C193: Generar agenda para trabajo de técnicos BOSCH | D193: Nave | E193: 2014-04-14 | J193: cambio de tornillo sinfín
B194: 191 | C194: Cortar resorte a la medida de los repuestos de etiquetadoras | D194: Nave | E194: 2014-04-15 | J194: cambio / regulación cuchilla BOSCH 1
B195: 192 | C195: Revisar ohmiaje de resistencias en sello transversal de todas las empacadoras | D195: Mantenimiento | E195: 2014-04-15
B196: 193 | C196: Comprar un rollo de manguera para sistemas de succión | D196: Mantenimiento | E196: 2014-04-15
B197: 194 | C197: Segregar bobinas de etiquetas de acuerdo a performance en línea | D197: Calidad | E197: 2014-04-15
B198: 195 | C198: Verificar espesor de bobinas de etiquetas según especificación | D198: Calidad | E198: 2014-04-15

Sheet Tn Acum
C2: SEGUIMIENTO DE CUMPLIMIENTO
C4: Día | D4: Tn Acc Prog | E4: Tn Real | F4: Tn Acc Real | G4: Tn Dif
B5: Lun | C5: 2014-03-17 | D5: =D95/91 -> 36.56043956 | F5: =E5 -> 0 | G5: =D5-F5 -> 36.56043956
B6: Ma | C6: 2014-03-18 | D6: =D5+$D$95/91 -> 73.12087912 | F6: =E6+F5 -> 0 | G6: =D6-F6 -> 73.12087912
B7: Mie | C7: 2014-03-19 | D7: =D6+$D$95/91 -> 109.6813187 | F7: =E7+F6 -> 0 | G7: =D7-F7 -> 109.6813187
B8: Jue | C8: 2014-03-20 | D8: =D7+$D$95/91 -> 146.2417582 | F8: 0 | G8: 146.2417582
B9: Vi | C9: 2014-03-21 | D9: 182.8021978 | F9: 0 | G9: 182.8021978
B10: Sa | C10: 2014-03-22 | D10: 219.3626374 | F10: 0 | G10: 219.3626374
B11: Do | C11: 2014-03-23 | D11: 255.9230769 | F11: 0 | G11: 255.9230769
B12: Lun | C12: 2014-03-24 | D12: 292.4835165 | F12: 0 | G12: 292.4835165
B13: Ma | C13: 2014-03-25 | D13: 329.043956 | F13: 0 | G13: 329.043956
B14: Mie | C14: 2014-03-26 | D14: 365.6043956 | F14: 0 | G14: 365.6043956
B15: Jue | C15: 2014-03-27 | D15: 402.1648352 | F15: 0 | G15: 402.1648352
B16: Vi | C16: 2014-03-28 | D16: 438.7252747 | F16: 0 | G16: 438.7252747
B17: Sa | C17: 2014-03-29 | D17: 475.2857143 | F17: 0 | G17: 475.2857143
B18: Do | C18: 2014-03-30 | D18: 511.8461538 | F18: 0 | G18: 511.8461538
B19: Lun | C19: 2014-03-31 | D19: 548.4065934 | F19: 0 | G19: 548.4065934
B20: Ma | C20: 2014-04-01 | D20: 584.967033 | F20: 0 | G20: 584.967033
B21: Mie | C21: 2014-04-02 | D21: 621.5274725 | F21: 0 | G21: 621.5274725
B22: Jue | C22: 2014-04-03 | D22: 658.0879121 | F22: 0 | G22: 658.0879121
B23: Vi | C23: 2014-04-04 | D23: 694.6483516 | F23: 0 | G23: 694.6483516
B24: Sa | C24: 2014-04-05 | D24: 731.2087912 | F24: 0 | G24: 731.2087912
B25: Do | C25: 2014-04-06 | D25: 767.7692308 | F25: 0 | G25: 767.7692308
B26: Lun | C26: 2014-04-07 | D26: 804.3296703 | F26: 0 | G26: 804.3296703
B27: Ma | C27: 2014-04-08 | D27: 840.8901099 | F27: 0 | G27: 840.8901099
B28: Mie | C28: 2014-04-09 | D28: 877.4505495 | F28: 0 | G28: 877.4505495
B29: Jue | C29: 2014-04-10 | D29: 914.010989 | F29: 0 | G29: 914.010989
B30: Vi | C30: 2014-04-11 | D30: 950.5714286 | F30: 0 | G30: 950.5714286
B31: Sa | C31: 2014-04-12 | D31: 987.1318681 | F31: 0 | G31: 987.1318681
B32: Do | C32: 2014-04-13 | D32: 1023.692308 | F32: 0 | G32: 1023.692308
B33: Mar | C33: 2014-04-14 | D33: 1060.252747 | F33: 0 | G33: 1060.252747
B34: Ma | C34: 2014-04-15 | D34: 1096.813187 | F34: 0 | G34: 1096.813187
B35: Vie | C35: 2014-04-16 | D35: 1133.373626 | F35: 0 | G35: 1133.373626
B36: Sáb | C36: 2014-04-17 | D36: 1169.934066 | F36: 0 | G36: 1169.934066
B37: Vi | C37: 2014-04-18 | D37: 1206.494505 | F37: 0 | G37: 1206.494505
B38: Sa | C38: 2014-04-19 | D38: 1243.054945 | F38: 0 | G38: 1243.054945
B39: Do | C39: 2014-04-20 | D39: 1279.615385 | F39: 0 | G39: 1279.615385
B40: Mié | C40: 2014-04-21 | D40: 1316.175824 | F40: 0 | G40: 1316.175824 | O40: facilitador
B41: Ma | C41: 2014-04-22 | D41: 1352.736264 | F41: 0 | G41: 1352.736264 | O41: Sirlupu
B42: Dom | C42: 2014-04-23 | D42: 1389.296703 | F42: 0 | G42: 1389.296703 | O42: Hugo Reyes
B43: Lun | C43: 2014-04-24 | D43: 1425.857143 | F43: 0 | G43: 1425.857143 | O43: Alatrista
B44: Vi | C44: 2014-04-25 | D44: 1462.417582 | F44: 0 | G44: 1462.417582 | O44: Romeo Bocanegra
B45: Sa | C45: 2014-04-26 | D45: 1498.978022 | F45: 0 | G45: 1498.978022 | O45: Victor Quintero
B46: Do | C46: 2014-04-27 | D46: 1535.538462 | F46: 0 | G46: 1535.538462
B47: Jue | C47: 2014-04-28 | D47: 1572.098901 | F47: 0 | G47: 1572.098901
B48: Ma | C48: 2014-04-29 | D48: 1608.659341 | F48: 0 | G48: 1608.659341
B49: Mar | C49: 2014-04-30 | D49: 1645.21978 | F49: 0 | G49: 1645.21978
B50: Mié | C50: 2014-05-01 | D50: 1681.78022 | F50: 0 | G50: 1681.78022
B51: Vi | C51: 2014-05-02 | D51: 1718.340659 | F51: 0 | G51: 1718.340659
B52: Sa | C52: 2014-05-03 | D52: 1754.901099 | F52: 0 | G52: 1754.901099
B53: Do | C53: 2014-05-04 | D53: 1791.461538 | F53: 0 | G53: 1791.461538
B54: Vie | C54: 2014-05-05 | D54: 1828.021978 | F54: 0 | G54: 1828.021978
B55: Ma | C55: 2014-05-06 | D55: 1864.582418 | F55: 0 | G55: 1864.582418
B56: Jue | C56: 2014-05-07 | D56: 1901.142857 | F56: 0 | G56: 1901.142857
B57: Vie | C57: 2014-05-08 | D57: 1937.703297 | F57: 0 | G57: 1937.703297
B58: Vi | C58: 2014-05-09 | D58: 1974.263736 | F58: 0 | G58: 1974.263736
B59: Sa | C59: 2014-05-10 | D59: 2010.824176 | F59: 0 | G59: 2010.824176
B60: Do | C60: 2014-05-11 | D60: 2047.384615 | F60: 0 | G60: 2047.384615
B61: Sáb | C61: 2014-05-12 | D61: 2083.945055 | F61: 0 | G61: 2083.945055
B62: Ma | C62: 2014-05-13 | D62: 2120.505495 | F62: 0 | G62: 2120.505495
B63: Sáb | C63: 2014-05-14 | D63: 2157.065934 | F63: 0 | G63: 2157.065934
B64: Dom | C64: 2014-05-15 | D64: 2193.626374 | F64: 0 | G64: 2193.626374
B65: Vi | C65: 2014-05-16 | D65: 2230.186813 | F65: 0 | G65: 2230.186813
B66: Sa | C66: 2014-05-17 | D66: 2266.747253 | F66: 0 | G66: 2266.747253
B67: Do | C67: 2014-05-18 | D67: 2303.307692 | F67: 0 | G67: 2303.307692
B68: Dom | C68: 2014-05-19 | D68: 2339.868132 | F68: 0 | G68: 2339.868132
B69: Ma | C69: 2014-05-20 | D69: 2376.428571 | F69: 0 | G69: 2376.428571
B70: Lun | C70: 2014-05-21 | D70: 2412.989011 | F70: 0 | G70: 2412.989011
B71: Mar | C71: 2014-05-22 | D71: 2449.549451 | F71: =E71+F70 -> 0 | G71: =D71-F71 -> 2449.549451
B72: Vi | C72: 2014-05-23 | D72: =D71+$D$95/91 -> 2486.10989 | F72: 0 | G72: 2486.10989
B73: Sa | C73: 2014-05-24 | D73: 2522.67033 | F73: 0 | G73: 2522.67033
B74: Do | C74: 2014-05-25 | D74: 2559.230769 | F74: 0 | G74: 2559.230769
B75: Lun | C75: 2014-05-26 | D75: 2595.791209 | F75: 0 | G75: 2595.791209
B76: Ma | C76: 2014-05-27 | D76: 2632.351648 | F76: 0 | G76: 2632.351648
B77: Mié | C77: 2014-05-28 | D77: 2668.912088 | F77: 0 | G77: 2668.912088
B78: Jue | C78: 2014-05-29 | D78: 2705.472527 | F78: 0 | G78: 2705.472527
B79: Vi | C79: 2014-05-30 | D79: 2742.032967 | F79: 0 | G79: 2742.032967
B80: Sa | C80: 2014-05-31 | D80: 2778.593407 | F80: 0 | G80: 2778.593407
B81: Do | C81: 2014-06-01 | D81: 2815.153846 | F81: 0 | G81: 2815.153846
B82: Mar | C82: 2014-06-02 | D82: 2851.714286 | F82: 0 | G82: 2851.714286
B83: Ma | C83: 2014-06-03 | D83: 2888.274725 | F83: 0 | G83: 2888.274725
B84: Vie | C84: 2014-06-04 | D84: 2924.835165 | F84: 0 | G84: 2924.835165
B85: Sáb | C85: 2014-06-05 | D85: 2961.395604 | F85: 0 | G85: 2961.395604
B86: Vi | C86: 2014-06-06 | D86: 2997.956044 | F86: 0 | G86: 2997.956044
B87: Sa | C87: 2014-06-07 | D87: 3034.516484 | F87: 0 | G87: 3034.516484
B88: Do | C88: 2014-06-08 | D88: 3071.076923 | F88: 0 | G88: 3071.076923
B89: Mié | C89: 2014-06-09 | D89: 3107.637363 | F89: 0 | G89: 3107.637363
B90: Ma | C90: 2014-06-10 | D90: 3144.197802 | F90: 0 | G90: 3144.197802
B91: Dom | C91: 2014-06-11 | D91: 3180.758242 | F91: 0 | G91: 3180.758242
B92: Lun | C92: 2014-06-12 | D92: 3217.318681 | F92: 0 | G92: 3217.318681
B93: Vi | C93: 2014-06-13 | D93: 3253.879121 | F93: 0 | G93: 3253.879121
B94: Sa | C94: 2014-06-14 | D94: 3290.43956 | F94: 0 | G94: 3290.43956
B95: Do | C95: 2014-06-15 | D95: =3327 -> 3327 | F95: 0 | G95: 3327
